bitfinex-derivatives/quotes_BTCF0:USTF0_20250315
["timestamp","ask_amount","ask_price","bid_price","bid_amount"]
[1742056813635,0.1502241,84449.0,84448.0,1.00133626]
[1742056813831,0.1502241,84449.0,84448.0,0.77133626]
[1742056815031,0.1502241,84449.0,84448.0,0.49133626]
[1742056816124,0.0318,84449.0,84448.0,0.49133626]
[1742056818042,0.1502241,84449.0,84448.0,0.49133626]
[1742056818230,0.064,84449.0,84448.0,0.49133626]
[1742056818436,0.1824241,84449.0,84448.0,0.49133626]
[1742056818733,0.064,84449.0,84448.0,0.49133626]
[1742056819329,0.0318,84449.0,84448.0,0.49133626]
[1742056820039,0.1184132,84457.0,84456.0,0.1184143]
[1742056820629,0.1830105,84459.0,84458.0,0.1184115]
[1742056820831,0.0646,84459.0,84458.0,0.1184115]
[1742056821029,0.1830101,84459.0,84458.0,0.4792115]
[1742056821225,0.0646,84459.0,84458.0,0.5116115]
[1742056821434,0.1184091,84460.0,84459.0,0.1184101]
[1742056821737,0.1184091,84460.0,84459.0,0.1503101]
[1742056821941,4e-05,84463.0,84460.0,0.1776125]
[1742056822138,0.0591934,84476.0,84466.0,0.1183974]
[1742056822324,0.06097308,84471.0,84468.0,0.1183974]
[1742056822525,0.2355107,84469.0,84468.0,0.1183974]
[1742056822831,0.118396,84469.0,84468.0,0.1183974]
[1742056823138,0.118396,84469.0,84468.0,0.1303388]
[1742056823523,0.118396,84469.0,84468.0,0.1622388]
[1742056823737,0.118396,84469.0,84468.0,0.1923388]
[1742056823930,0.182096,84469.0,84468.0,0.1923388]
[1742056825233,0.00181638,84471.0,84470.0,0.1183946]
[1742056825427,0.00181638,84471.0,84470.0,0.3283946]
[1742056826039,0.00177638,84471.0,84470.0,0.3283946]
[1742056826541,0.12016958,84471.0,84470.0,0.3283946]
[1742056826740,0.12016958,84471.0,84470.0,0.1183946]
[1742056827134,0.18496958,84471.0,84470.0,0.1183946]
[1742056828734,0.06657638,84471.0,84470.0,0.1183946]
[1742056828944,0.18496958,84471.0,84470.0,0.1183946]
[1742056829140,0.00177638,84471.0,84470.0,0.3783946]
[1742056829730,0.00177638,84471.0,84470.0,0.3383946]
[1742056830239,4e-05,84473.0,84472.0,0.0591954]
[1742056830546,0.1775662,84485.0,84484.0,0.1183694]
[1742056830746,0.0591892,84485.0,84484.0,0.1183694]
[1742056831135,0.0591832,84491.0,84490.0,0.1183666]
[1742056831554,0.1183666,84490.0,84489.0,0.0332]
[1742056831846,0.1508666,84490.0,84489.0,0.151568]
[1742056832245,0.0591842,84489.0,84469.0,0.0591974]
[1742056832434,0.0591842,84489.0,84468.0,0.37262287]
[1742056832435,0.1183834,84478.0,84477.0,0.1183847]
[1742056832938,0.0653,84479.0,84478.0,0.1183834]
[1742056833335,0.183682,84479.0,84478.0,0.1183834]
[1742056833536,0.183682,84479.0,84478.0,0.1498834]
[1742056833942,0.0653,84479.0,84478.0,0.1498834]
[1742056834438,0.0653,84479.0,84478.0,0.1811834]
[1742056834636,0.0325,84479.0,84478.0,0.1811834]
[1742056835347,0.0592223,84492.0,84487.0,0.1183708]
[1742056835547,0.1183674,84490.0,84488.0,0.1183694]
[1742056835850,0.2148671,84491.0,84490.0,0.1183666]
[1742056836142,0.1514671,84491.0,84490.0,0.1183666]
[1742056836347,0.1514671,84491.0,84490.0,0.13008202]
[1742056836739,0.1514671,84491.0,84490.0,0.16098202]
[1742056837351,0.1514671,84491.0,84490.0,0.1492666]
[1742056843256,0.0591799,84495.0,84493.0,0.0591809]
[1742056843456,0.1775409,84495.0,84494.0,0.210638]
[1742056843844,0.1775409,84495.0,84494.0,0.241138]
[1742056844039,0.2085409,84495.0,84494.0,0.241138]
[1742056844545,0.2085409,84495.0,84494.0,0.1227798]
[1742056844746,0.2403409,84495.0,84494.0,0.1227798]
[1742056851956,0.4703409,84495.0,84494.0,0.0636]
[1742056852749,0.2403409,84495.0,84494.0,0.181961]
[1742056852961,0.3579409,84495.0,84494.0,0.181961]
[1742056854054,0.3579409,84495.0,84494.0,0.0636]
[1742056854462,0.3579409,84495.0,84494.0,0.181961]
[1742056856356,0.3579409,84495.0,84494.0,0.0636]
[1742056857177,0.3577009,84495.0,84494.0,0.0636]
[1742056857555,0.3577009,84495.0,84494.0,0.181961]
[1742056858463,0.3577009,84495.0,84494.0,0.0636]
[1742056858851,0.3698177,84495.0,84494.0,0.0636]
[1742056859050,0.3577009,84495.0,84494.0,0.0636]
[1742056859357,0.3577009,84495.0,84494.0,0.181961]
[1742056860268,0.3608,84499.0,84497.0,0.1183554]
[1742056860453,0.1183561,84498.0,84497.0,0.1183554]
[1742056860658,0.1787561,84498.0,84497.0,0.1183554]
[1742056863163,0.1183582,84496.0,84495.0,0.0591791]
[1742056863764,0.0332,84498.0,84497.0,0.1183568]
[1742056864060,0.1515554,84498.0,84497.0,0.1183568]
[1742056864459,0.1831554,84498.0,84497.0,0.1183568]
[1742056865271,0.1801554,84498.0,84497.0,0.1183568]
[1742056867061,0.003,84498.0,84497.0,0.1183568]
[1742056869170,0.1213554,84498.0,84497.0,0.1183568]
[1742056869470,0.1525554,84498.0,84497.0,0.1183568]
[1742056870059,0.1845554,84498.0,84497.0,0.1183568]
[1742056870258,0.0342,84498.0,84497.0,0.1183568]
[1742056870473,0.1525554,84498.0,84497.0,0.1183568]
[1742056870859,0.0342,84498.0,84484.0,0.4199874]
[1742056871059,0.1183736,84485.0,84484.0,0.3608]
[1742056871365,0.3483736,84485.0,84484.0,0.3608]
[1742056871564,0.3483736,84485.0,84484.0,0.479175]
[1742056871764,0.4099736,84485.0,84484.0,0.479175]
[1742056872472,0.4099736,84485.0,84484.0,0.49094415]
[1742056872663,0.4099736,84485.0,84484.0,0.479175]
[1742056873577,0.4099736,84485.0,84484.0,0.3608]
[1742056874278,0.1183792,84481.0,84480.0,0.0313]
[1742056874483,0.3683792,84481.0,84480.0,0.0313]
[1742056875174,0.4335792,84481.0,84480.0,0.0313]
[1742056875480,0.0652,84481.0,84480.0,0.1496806]
[1742056875775,0.1835792,84481.0,84480.0,0.1496806]
[1742056876371,0.1835792,84481.0,84480.0,0.1516806]
[1742056876575,0.4735792,84481.0,84480.0,0.0333]
[1742056877074,0.1183848,84477.0,84476.0,0.00017757]
[1742056877274,0.3883848,84477.0,84476.0,0.00017757]
[1742056877475,0.5068648,84477.0,84476.0,0.11856377]
[1742056877877,0.5729648,84477.0,84476.0,0.11856377]
[1742056878080,0.6046648,84477.0,84476.0,0.11856377]
[1742056878277,0.3346648,84477.0,84476.0,0.11856377]
[1742056878676,0.3346648,84477.0,84476.0,0.15116377]
[1742056878880,0.1818848,84477.0,84476.0,0.15116377]
[1742056879084,0.11936,84477.0,84476.0,0.15116377]
[1742056879584,0.2377448,84477.0,84476.0,0.15516377]
[1742056879780,0.4677448,84477.0,84476.0,0.15516377]
[1742056879983,0.4677448,84477.0,84476.0,0.03677757]
[1742056880181,0.118396,84469.0,84464.0,0.15472262]
[1742056880389,0.118396,84469.0,84467.0,0.1183979]
[1742056880688,0.118396,84469.0,84468.0,0.4791974]
[1742056880888,0.118396,84469.0,84468.0,0.5116974]
[1742056881187,0.0591933,84476.0,84473.0,0.0591946]
[1742056881375,0.1183892,84474.0,84473.0,0.0591946]
[1742056881680,0.1183892,84474.0,84473.0,0.0916946]
[1742056882086,0.0325,84474.0,84473.0,0.1235946]
[1742056882287,0.11953686,84477.0,84476.0,0.1183862]
[1742056882477,0.39953686,84477.0,84476.0,0.1183862]
[1742056882682,0.11953686,84477.0,84476.0,0.1183862]
[1742056883888,0.00017686,84477.0,84476.0,0.1525862]
[1742056884079,0.00017686,84477.0,84476.0,0.4125862]
[1742056884280,0.00017686,84477.0,84476.0,0.4325862]
[1742056884590,0.00017686,84477.0,84476.0,0.1525862]
[1742056884787,0.00017686,84477.0,84476.0,0.0342]
[1742056884788,0.39856166,84477.0,84476.0,0.0342]
[1742056884988,0.46156166,84477.0,84476.0,0.004]
[1742056885383,0.18293686,84477.0,84476.0,0.1525862]
[1742056885585,0.11993686,84477.0,84476.0,0.1832862]
[1742056885891,0.00017686,84477.0,84476.0,0.6051862]
[1742056886777,0.00017686,84477.0,84476.0,0.8251862]
[1742056886974,0.00017686,84477.0,84476.0,0.6051862]
[1742056895620,0.00017686,84477.0,84476.0,0.5851862]
[1742056896015,0.00017686,84477.0,84476.0,0.3251862]
[1742056896016,0.11856166,84477.0,84476.0,0.3251862]
[1742056896220,0.00017686,84477.0,84476.0,0.3251862]
[1742056897426,0.00017686,84477.0,84476.0,0.33888349]
[1742056897928,0.41216166,84477.0,84476.0,0.12769729]
[1742056898114,0.21496166,84477.0,84476.0,0.12769729]
[1742056898315,0.21496166,84477.0,84476.0,0.114]
[1742056899823,0.21496166,84477.0,84476.0,0.24617094]
[1742056900029,0.21496166,84477.0,84476.0,0.13617094]
[1742056900916,0.21496166,84477.0,84476.0,0.16797094]
[1742056902616,0.09657686,84477.0,84476.0,0.19847094]
[1742056902816,0.21496166,84477.0,84476.0,0.19847094]
[1742056904830,0.21496166,84477.0,84476.0,0.1846862]
[1742056905733,0.30424166,84477.0,84476.0,0.1846862]
[1742056907819,0.30436166,84477.0,84476.0,0.1846862]
[1742056912029,0.30436166,84477.0,84476.0,0.1541862]
[1742056912431,0.30436166,84477.0,84476.0,0.1868862]
[1742056913327,0.30436166,84477.0,84476.0,0.20040896]
[1742056913930,0.30436166,84477.0,84476.0,0.1868862]
[1742056915136,0.30436166,84477.0,84476.0,0.20038916]
[1742056915633,0.18597686,84477.0,84476.0,0.20038916]
[1742056916134,0.06377686,84477.0,84476.0,0.20038916]
[1742056916637,0.18216166,84477.0,84476.0,0.20038916]
[1742056917925,0.06377686,84477.0,84476.0,0.43038916]
[1742056918124,0.06377686,84477.0,84476.0,0.46038916]
[1742056918320,4e-05,84478.0,84476.0,0.69038916]
[1742056918533,4e-05,84478.0,84477.0,0.1183848]
[1742056918735,4e-05,84478.0,84477.0,0.7983848]
[1742056918931,4e-05,84478.0,84477.0,0.8633848]
[1742056919122,0.3608,84480.0,84479.0,0.118382]
[1742056919326,0.3608,84480.0,84479.0,0.798382]
[1742056919733,0.3608,84480.0,84479.0,0.861582]
[1742056920833,0.3608,84480.0,84479.0,0.862582]
[1742056921239,0.3608,84480.0,84479.0,0.863582]
[1742056926829,0.3914,84480.0,84479.0,0.863582]
[1742056927033,0.4222,84480.0,84479.0,0.863582]
[1742056927630,0.4222,84480.0,84479.0,0.866582]
[1742056927834,0.4222,84480.0,84479.0,0.868582]
[1742056929741,0.3914,84480.0,84479.0,0.868582]
[1742056929944,0.5097806,84480.0,84479.0,0.458582]
[1742056930247,0.5405806,84480.0,84479.0,0.458582]
[1742056930437,0.4222,84480.0,84479.0,0.458582]
[1742056931350,0.5405806,84480.0,84479.0,0.454582]
[1742056931645,0.5405806,84480.0,84479.0,0.456582]
[1742056932052,0.4222,84480.0,84479.0,0.456582]
[1742056932237,0.4222,84480.0,84479.0,0.455582]
[1742056933643,0.4222,84480.0,84479.0,0.454582]
[1742056933849,0.5405806,84480.0,84479.0,0.454582]
[1742056934044,0.5405806,84480.0,84479.0,0.425182]
[1742056934642,0.5405806,84480.0,84479.0,0.424182]
[1742056936754,0.5405806,84480.0,84479.0,0.423182]
[1742056937047,0.5405806,84480.0,84479.0,0.425182]
[1742056937442,0.5405806,84480.0,84479.0,0.424182]
[1742056937648,0.5405806,84480.0,84479.0,0.422182]
[1742056937853,0.5405806,84480.0,84479.0,0.423182]
[1742056938152,0.5405806,84480.0,84479.0,0.424182]
[1742056938450,0.8205806,84480.0,84479.0,0.3038]
[1742056938639,0.5405806,84480.0,84479.0,0.002]
[1742056938835,0.0591954,84475.0,84474.0,0.1183834]
[1742056939242,0.0892954,84475.0,84474.0,0.1183834]
[1742056939438,0.1219954,84475.0,84474.0,0.1789834]
[1742056939945,0.1209954,84475.0,84474.0,0.1789834]
[1742056940557,0.1209954,84475.0,84474.0,0.1809834]
[1742056941040,0.1209954,84475.0,84474.0,0.1839834]
[1742056941457,0.0628,84475.0,84474.0,0.1839834]
[1742056941954,0.1811876,84475.0,84474.0,0.1839834]
[1742056942545,0.0628,84475.0,84474.0,0.1839834]
[1742056943257,0.1811876,84475.0,84474.0,0.1839834]
[1742056944260,0.0628,84475.0,84474.0,0.1839834]
[1742056944648,0.1811876,84475.0,84474.0,0.1839834]
[1742056944852,0.0628,84475.0,84474.0,0.1839834]
[1742056946159,0.1811876,84475.0,84474.0,0.1839834]
[1742056947653,0.0628,84475.0,84474.0,0.1839834]
[1742056949160,0.1811876,84475.0,84474.0,0.1839834]
[1742056950250,0.2111876,84475.0,84474.0,0.1839834]
[1742056958368,0.0928,84475.0,84474.0,0.1839834]
[1742056959758,0.0628,84475.0,84474.0,0.1839834]
[1742056960759,0.1811876,84475.0,84474.0,0.1839834]
[1742056963858,0.2994676,84475.0,84474.0,0.1839834]
[1742056964274,0.4094676,84475.0,84474.0,0.1839834]
[1742056964768,0.2911876,84475.0,84474.0,0.1839834]
[1742056964959,0.4094676,84475.0,84474.0,0.183989]
[1742056965360,0.2911876,84475.0,84474.0,0.183989]
[1742056965979,0.4094676,84475.0,84474.0,0.153689]
[1742056966170,0.4094676,84475.0,84474.0,0.0353]
[1742056966362,0.118396,84469.0,84468.0,0.1512974]
[1742056966569,0.348396,84469.0,84468.0,0.1512974]
[1742056967166,0.1183974,84468.0,84467.0,0.1183984]
[1742056967367,0.1184045,84463.0,84462.0,0.21248423]
[1742056967576,0.1154073,84461.0,84460.0,0.0019532]
[1742056967776,0.3754073,84461.0,84460.0,0.2619532]
[1742056968279,0.4361073,84461.0,84460.0,0.2619532]
[1742056969166,0.4331073,84461.0,84460.0,0.2649532]
[1742056969762,0.4331073,84461.0,84460.0,0.2669532]
[1742056970571,0.4331073,84461.0,84460.0,0.0069532]
[1742056970766,0.4331073,84461.0,84460.0,0.2669532]
[1742056970966,0.5213873,84461.0,84460.0,0.3853619]
[1742056971567,0.5213873,84461.0,84460.0,0.4504619]
[1742056974684,0.5213873,84461.0,84460.0,0.44868627]
[1742056975174,0.5213473,84461.0,84460.0,0.44568627]
[1742056975374,0.5213473,84461.0,84460.0,0.45773739]
[1742056975575,0.5213473,84461.0,84460.0,0.45673739]
[1742056975774,0.2913473,84461.0,84460.0,0.45673739]
[1742056975975,0.5313473,84461.0,84460.0,0.45673739]
[1742056976880,0.1731073,84461.0,84460.0,0.45673739]
[1742056977083,0.3608,84463.0,84462.0,0.1184059]
[1742056977279,0.3608,84463.0,84462.0,0.3784059]
[1742056977879,0.3608,84468.0,84467.0,0.1183989]
[1742056978082,0.3608,84468.0,84467.0,0.3383989]
[1742056978775,0.3608,84468.0,84467.0,0.4018989]
[1742056978970,0.3608,84468.0,84467.0,0.4618989]
[1742056979184,0.3618,84468.0,84467.0,0.4618989]
[1742056980479,0.3608,84468.0,84467.0,0.4628989]
[1742056981687,0.11844,84479.0,84475.0,0.0591936]
[1742056981874,0.47977811,84482.0,84481.0,0.1183792]
[1742056982070,0.4791781,84482.0,84481.0,0.1183792]
[1742056982470,0.5416781,84482.0,84481.0,0.1183792]
[1742056983073,0.5416781,84482.0,84481.0,0.13022673]
[1742056983275,0.5436781,84482.0,84481.0,0.13022673]
[1742056983969,0.5446781,84482.0,84481.0,0.13022673]
[1742056986285,0.4263,84482.0,84481.0,0.13022673]
[1742056986880,0.3963,84482.0,84481.0,0.13022673]
[1742056987486,0.4272,84482.0,84481.0,0.13022673]
[1742056987678,0.5455778,84482.0,84481.0,0.13022673]
[1742056996191,0.1183806,84480.0,84479.0,0.0646]
[1742056996383,0.1183806,84480.0,84460.0,0.05938187]
[1742056996384,0.0591908,84480.0,84460.0,0.05938187]
[1742056996577,0.1775884,84475.0,84474.0,0.118382]
[1742056996981,0.1775884,84475.0,84474.0,0.13010906]
[1742056997177,0.1775884,84475.0,84474.0,0.19040906]
[1742056997791,0.2100884,84475.0,84474.0,0.19040906]
[1742056999197,0.2100884,84475.0,84474.0,0.19140906]
[1742056999783,0.2100884,84475.0,84474.0,0.0613]
[1742056999985,0.5708884,84475.0,84474.0,0.0613]
[1742057000589,0.5708884,84475.0,84474.0,0.0313]
[1742057000787,0.6887284,84475.0,84474.0,0.0313]
[1742057000994,0.6887284,84475.0,84474.0,0.001]
[1742057004498,0.5708884,84475.0,84474.0,0.001]
[1742057004798,0.6886484,84475.0,84474.0,0.119389]
[1742057005192,0.6886484,84475.0,84474.0,0.182289]
[1742057014207,0.9486484,84475.0,84474.0,0.182289]
[1742057014408,0.6886484,84475.0,84474.0,0.182289]
[1742057014596,0.5708884,84475.0,84474.0,0.182289]
[1742057014794,0.6883284,84475.0,84474.0,0.182289]
[1742057016301,0.3275284,84475.0,84474.0,0.182289]
[1742057016506,0.6883284,84475.0,84474.0,0.181289]
[1742057016709,0.6883284,84475.0,84474.0,0.182289]
[1742057017007,0.9483284,84475.0,84474.0,0.001]
[1742057018705,0.1184073,84461.0,84455.0,0.0592078]
[1742057018913,0.1184073,84461.0,84448.0,0.0592121]
[1742057018914,0.1184241,84450.0,84448.0,0.0592121]
[1742057019205,0.1184241,84450.0,84449.0,0.0628]
[1742057019512,0.4792241,84450.0,84449.0,0.4612233]
[1742057019897,0.4752241,84450.0,84449.0,0.4612233]
[1742057020101,0.5070241,84450.0,84449.0,0.4919233]
[1742057020801,0.5080241,84450.0,84449.0,0.4919233]
[1742057021204,0.5090241,84450.0,84449.0,0.4919233]
[1742057024304,0.5080241,84450.0,84449.0,0.4919233]
[1742057025612,0.5070241,84450.0,84449.0,0.4919233]
[1742057025804,0.3926,84450.0,84449.0,0.4919233]
[1742057026201,0.3926,84450.0,84449.0,0.5019233]
[1742057027107,0.3926,84450.0,84449.0,0.5029233]
[1742057027510,0.3926,84450.0,84449.0,0.5019233]
[1742057027718,0.3926,84450.0,84449.0,0.5039233]
[1742057028014,0.3608,84450.0,84449.0,0.5039233]
[1742057028211,0.3608,84450.0,84449.0,0.7439233]
[1742057028814,0.3608,84450.0,84449.0,0.9839233]
[1742057029022,0.00017757,84458.0,84454.0,0.0592082]
[1742057029214,0.00017757,84458.0,84457.0,0.1184129]
[1742057029514,0.00017757,84458.0,84457.0,0.8384129]
[1742057031512,0.00017757,84458.0,84457.0,0.5984129]
[1742057032121,0.11858907,84458.0,84457.0,0.5984129]
[1742057032416,0.18008907,84458.0,84457.0,0.5984129]
[1742057040218,0.1184129,84457.0,84456.0,0.07893737]
[1742057040521,0.3984129,84457.0,84456.0,0.07893737]
[1742057040720,0.1184157,84455.0,84454.0,0.0592078]
[1742057040926,0.1184157,84455.0,84448.0,0.13042128]
[1742057040927,0.1184241,84449.0,84448.0,0.13042128]
[1742057041126,0.3884241,84449.0,84448.0,0.24884338]
[1742057041318,0.3884241,84449.0,84448.0,0.01199918]
[1742057041511,0.1184297,84445.0,84444.0,0.2368602]
[1742057041712,0.3684297,84445.0,84444.0,0.0592149]
[1742057042335,0.4621297,84445.0,84444.0,0.0592149]
[1742057042518,0.1184325,84443.0,84442.0,0.0592163]
[1742057042722,0.4792325,84443.0,84442.0,0.07111148]
[1742057043318,0.4792325,84443.0,84442.0,0.0592163]
[1742057044016,0.4792325,84443.0,84442.0,0.0602163]
[1742057044630,0.4792325,84443.0,84442.0,0.1231163]
[1742057044828,0.7592325,84443.0,84442.0,0.0915163]
[1742057045222,0.4792325,84443.0,84442.0,0.0602163]
[1742057046424,0.4792325,84443.0,84442.0,0.001]
[1742057046724,0.7292325,84443.0,84442.0,0.001]
[1742057047523,0.7292325,84443.0,84442.0,0.1194339]
[1742057048119,0.4792325,84443.0,84442.0,0.1194339]
[1742057048525,0.4792325,84443.0,84442.0,0.1514339]
[1742057050023,0.4792325,84443.0,84442.0,0.1194339]
[1742057050419,0.4792325,84443.0,84442.0,0.001]
[1742057051836,0.4792325,84443.0,84442.0,0.1194339]
[1742057052031,0.4792325,84443.0,84442.0,0.001]
[1742057053028,0.5892325,84443.0,84442.0,0.001]
[1742057054529,0.60093594,84443.0,84442.0,0.001]
[1742057055935,0.5892325,84443.0,84442.0,0.001]
[1742057056329,0.4792325,84443.0,84442.0,0.001]
[1742057056631,0.7192325,84443.0,84442.0,0.1194339]
[1742057057432,0.7192325,84443.0,84442.0,0.1802339]
[1742057057634,0.7192325,84443.0,84442.0,0.1500339]
[1742057058435,0.7192325,84443.0,84442.0,0.1194339]
[1742057058937,0.7192325,84443.0,84442.0,0.001]
[1742057062141,0.7192325,84443.0,84442.0,0.0316]
[1742057062838,0.8349125,84443.0,84442.0,0.0316]
[1742057063139,0.8649125,84443.0,84442.0,0.001]
[1742057063740,0.8649125,84443.0,84442.0,0.064]
[1742057064641,0.4792325,84443.0,84442.0,0.064]
[1742057064845,0.5948725,84443.0,84442.0,0.2145339]
[1742057067851,0.5948725,84443.0,84442.0,0.2135339]
[1742057070648,0.5948725,84443.0,84442.0,0.0951]
[1742057072149,0.5948725,84443.0,84442.0,0.2135339]
[1742057072539,0.5948725,84443.0,84442.0,0.0951]
[1742057074153,0.5948725,84443.0,84442.0,0.063]
[1742057074742,0.5948725,84443.0,84442.0,0.0323]
[1742057074743,0.8248725,84443.0,84442.0,0.0323]
[1742057075047,0.1184339,84442.0,84441.0,0.00017757]
[1742057075249,0.1812339,84442.0,84441.0,0.00017757]
[1742057075445,0.4312339,84442.0,84441.0,0.00017757]
[1742057076365,0.4332339,84442.0,84441.0,0.00017757]
[1742057076651,0.1184395,84438.0,84437.0,0.0622]
[1742057076838,0.3584395,84438.0,84437.0,0.0622]
[1742057077442,0.4212395,84438.0,84437.0,0.0622]
[1742057078246,0.4222395,84438.0,84437.0,0.0622]
[1742057079055,0.4232395,84438.0,84437.0,0.0622]
[1742057081447,0.7840395,84438.0,84437.0,0.0622]
[1742057082759,0.7840395,84438.0,84437.0,0.1806409]
[1742057082964,0.5440395,84438.0,84437.0,0.1806409]
[1742057084065,0.5440395,84438.0,84437.0,0.0622]
[1742057085456,0.8140395,84438.0,84437.0,0.0622]
[1742057086765,0.9294395,84438.0,84437.0,0.0622]
[1742057087265,0.5686395,84438.0,84437.0,0.0622]
[1742057087462,0.9294395,84438.0,84437.0,0.0622]
[1742057091765,0.1184493,84431.0,84430.0,0.1776744]
[1742057091967,0.4792493,84431.0,84430.0,0.2082744]
[1742057092967,0.5124493,84431.0,84430.0,0.25022079]
[1742057093161,0.5124493,84431.0,84430.0,0.28162079]
[1742057094269,0.5124493,84431.0,84430.0,0.28262079]
[1742057101999,0.5946093,84431.0,84430.0,0.50262079]
[1742057103391,0.3608,84431.0,84430.0,0.50262079]
[1742057103598,0.4792493,84431.0,84430.0,0.50262079]
[1742057105196,0.5110493,84431.0,84430.0,0.50262079]
[1742057119509,0.3608,84431.0,84430.0,0.54262079]
[1742057119705,0.3921,84431.0,84430.0,0.54262079]
[1742057120011,0.5105493,84431.0,84430.0,0.50262079]
[1742057120512,0.3608,84431.0,84430.0,0.52262079]
[1742057121009,0.4792493,84431.0,84430.0,0.50262079]
[1742057121213,0.5105493,84431.0,84430.0,0.50262079]
[1742057121912,0.6261493,84431.0,84430.0,0.50262079]
[1742057123620,0.6261493,84431.0,84430.0,0.54262079]
[1742057132415,0.6257093,84431.0,84430.0,0.54262079]
[1742057140828,0.6257093,84431.0,84430.0,0.50262079]
[1742057143638,0.6255093,84431.0,84430.0,0.50262079]
[1742057145734,0.6254293,84431.0,84430.0,0.50262079]
[1742057150738,0.2646293,84431.0,84430.0,0.50262079]
[1742057150940,0.6254293,84431.0,84430.0,0.50262079]
[1742057154244,0.5105493,84431.0,84430.0,0.50262079]
[1742057154939,0.5423493,84431.0,84430.0,0.50262079]
[1742057157151,0.5423493,84431.0,84430.0,0.52262079]
[1742057157943,0.4239,84431.0,84430.0,0.52262079]
[1742057158149,0.3608,84431.0,84430.0,1.07262079]
[1742057158346,0.3608,84431.0,84430.0,0.79262079]
[1742057158750,0.3608,84431.0,84430.0,0.90262079]
[1742057158939,0.3608,84448.0,84438.0,0.1184395]
[1742057159138,0.11476,84450.0,84446.0,0.1184255]
[1742057159139,0.091112,84449.0,84446.0,0.1184255]
[1742057159340,0.1807241,84449.0,84448.0,0.1184255]
[1742057159537,0.1807241,84449.0,84448.0,0.3384255]
[1742057159743,0.0623,84449.0,84448.0,0.4040255]
[1742057160244,0.1184201,84452.0,84451.0,0.1184213]
[1742057160449,0.1184201,84452.0,84451.0,0.3984213]
[1742057161042,0.1184201,84452.0,84451.0,0.4312213]
[1742057161245,0.1488201,84452.0,84451.0,0.4312213]
[1742057161447,0.0304,84452.0,84451.0,0.6412213]
[1742057161644,0.0311,84456.0,84455.0,0.1184157]
[1742057161835,0.0615,84456.0,84455.0,0.6084157]
[1742057162036,0.36097757,84457.0,84456.0,0.1184143]
[1742057162244,0.36097757,84457.0,84456.0,1.0684143]
[1742057162446,0.36101757,84457.0,84456.0,1.0684143]
[1742057163033,0.36097757,84457.0,84456.0,1.0684143]
[1742057163447,0.36397757,84457.0,84456.0,0.8584143]
[1742057163846,0.36697757,84457.0,84456.0,0.8584143]
[1742057164151,0.36697757,84457.0,84456.0,0.5784143]
[1742057164448,0.39747757,84457.0,84456.0,0.5784143]
[1742057165042,0.39747757,84457.0,84456.0,0.5884143]
[1742057168648,0.39747757,84457.0,84456.0,0.5784143]
[1742057169237,0.42977757,84457.0,84456.0,0.5784143]
[1742057170157,0.54819047,84457.0,84456.0,0.5784143]
[1742057173149,0.42977757,84457.0,84456.0,0.5884143]
[1742057174056,0.42977757,84457.0,84456.0,0.6208143]
[1742057175061,0.06897757,84457.0,84456.0,0.6208143]
[1742057176855,0.06597757,84457.0,84456.0,0.6208143]
[1742057177053,0.03547757,84457.0,84456.0,0.6208143]
[1742057177253,0.0631,84462.0,84459.0,0.0592044]
[1742057177439,0.0631,84462.0,84461.0,0.1184073]
[1742057177647,0.0631,84462.0,84461.0,0.5484073]
[1742057177856,0.0631,84462.0,84461.0,0.5584073]
[1742057178551,0.3608,84467.0,84466.0,0.1184003]
[1742057178754,0.3915,84467.0,84466.0,0.3584003]
[1742057179649,0.0307,84467.0,84466.0,0.3584003]
[1742057180763,0.0307,84467.0,84466.0,0.40224706]
[1742057181265,0.0307,84467.0,84466.0,0.40324706]
[1742057181448,0.0307,84467.0,84466.0,0.43394706]
[1742057182146,0.0309,84472.0,84471.0,0.1183932]
[1742057182354,0.0309,84472.0,84471.0,0.7283932]
[1742057182659,0.0309,84472.0,84471.0,0.4883932]
[1742057183160,0.0309,84472.0,84471.0,0.5506932]
[1742057185762,0.0309,84472.0,84471.0,0.5516932]
[1742057186261,0.1492918,84472.0,84471.0,0.4216932]
[1742057186860,0.1492918,84472.0,84471.0,0.3910932]
[1742057187854,0.1492918,84472.0,84471.0,0.3900932]
[1742057188060,0.1492918,84472.0,84471.0,0.3910932]
[1742057189661,0.1492918,84472.0,84471.0,0.3900932]
[1742057192268,0.0309,84472.0,84471.0,0.41349431]
[1742057192967,0.0309,84472.0,84471.0,0.4000932]
[1742057193357,0.1492918,84472.0,84471.0,0.4000932]
[1742057193554,0.1797918,84472.0,84471.0,0.4307932]
[1742057194157,0.3608,84476.0,84475.0,0.1183876]
[1742057194362,0.3608,84476.0,84475.0,0.3483876]
[1742057194565,0.4791862,84476.0,84475.0,0.3283876]
[1742057194765,0.5420862,84476.0,84475.0,0.3283876]
[1742057195465,0.5430862,84476.0,84475.0,0.3283876]
[1742057195668,0.5430862,84476.0,84475.0,0.3917876]
[1742057196065,0.5430862,84476.0,84475.0,0.4217876]
[1742057196066,0.5440862,84476.0,84475.0,0.4217876]
[1742057196257,0.5440862,84476.0,84475.0,0.3917876]
[1742057196764,0.5440862,84476.0,84475.0,0.4217876]
[1742057196964,0.5430862,84476.0,84475.0,0.4217876]
[1742057197152,0.5440862,84476.0,84475.0,0.4217876]
[1742057198367,0.5430862,84476.0,84475.0,0.4217876]
[1742057198566,0.5440862,84476.0,84475.0,0.4217876]
[1742057200660,0.5440862,84476.0,84475.0,0.3917876]
[1742057201271,0.5440862,84476.0,84475.0,0.4617876]
[1742057208158,0.0649,84476.0,84475.0,0.4617876]
[1742057211270,0.1832862,84476.0,84475.0,0.4617876]
[1742057211774,0.0649,84476.0,84475.0,0.4617876]
[1742057213878,0.0344,84476.0,84475.0,0.4617876]
[1742057214876,0.1859862,84476.0,84475.0,0.4617876]
[1742057215179,0.2179862,84476.0,84475.0,0.4617876]
[1742057222885,0.1859862,84476.0,84475.0,0.3917876]
[1742057226887,0.1859862,84476.0,84475.0,0.3610876]
[1742057227086,0.1183974,84468.0,84466.0,0.0211658]
[1742057227392,0.4791974,84468.0,84467.0,0.17957597]
[1742057228391,0.5426974,84468.0,84467.0,0.18057597]
[1742057228895,0.4243,84468.0,84467.0,0.39057597]
[1742057229191,0.5426974,84468.0,84467.0,0.42367597]
[1742057229907,0.4243,84468.0,84467.0,0.42367597]
[1742057230089,0.4243,84468.0,84467.0,0.45367597]
[1742057230291,0.4243,84468.0,84467.0,0.45467597]
[1742057230493,0.5426974,84468.0,84467.0,0.45467597]
[1742057230794,0.5426974,84468.0,84467.0,0.42467597]
[1742057231000,0.4243,84468.0,84467.0,0.42467597]
[1742057231177,0.5426974,84468.0,84467.0,0.42467597]
[1742057234388,0.5426974,84468.0,84467.0,0.42567597]
[1742057234795,0.1818974,84468.0,84467.0,0.42567597]